bitfinex/quotes_SOLUSD_20241029
["timestamp","ask_amount","ask_price","bid_price","bid_amount"]
[1730223311541,13.07698732,181.7,181.64,13.07698732]
[1730223311852,13.07698732,181.7,181.65,20.0]
[1730223312352,13.07698732,181.71,181.65,33.07698732]
[1730223313934,13.07698732,181.71,181.67,20.0]
[1730223315542,13.07698732,181.71,181.65,13.07698732]
[1730223315941,13.07698732,181.72,181.67,13.07698732]
[1730223316258,13.07698732,181.71,181.68,20.0]
[1730223316459,13.07698732,181.7,181.68,20.0]
[1730223316662,13.07698732,181.7,181.65,20.0]
[1730223316839,13.07698732,181.71,181.65,14.94693386]
[1730223317156,13.07698732,181.71,181.66,13.07698732]
[1730223317360,13.07698732,181.72,181.68,20.0]
[1730223318944,13.07698732,181.75,181.69,13.07698732]
[1730223319166,13.07698732,181.75,181.7,20.0]
[1730223319954,13.07698732,181.71,181.65,20.0]
[1730223320249,13.07698732,181.73,181.68,13.07698732]
[1730223320647,13.07698732,181.73,181.69,20.0]
[1730223320853,13.07698732,181.73,181.67,13.07698732]
[1730223321056,13.07698732,181.72,181.68,20.0]
[1730223322042,13.07698732,181.7,181.64,13.07698732]
[1730223322242,13.07698732,181.72,181.67,20.0]
[1730223322840,16.1572,181.78,181.69,20.0]
[1730223322841,13.07698732,181.74,181.69,20.0]
[1730223323039,13.07698732,181.75,181.69,33.07698732]
[1730223323447,13.07698732,181.74,181.69,20.0]
[1730223323840,13.07698732,181.76,181.7,13.07698732]
[1730223324059,13.07698732,181.76,181.71,20.0]
[1730223325162,13.07698732,181.74,181.7,20.0]
[1730223325743,13.07698732,181.76,181.7,33.07698732]
[1730223325946,13.07698732,181.76,181.71,20.0]
[1730223326645,16.1572,181.78,181.72,20.0]
[1730223326845,13.07698732,181.77,181.72,20.0]
[1730223327961,13.07698732,181.76,181.71,20.0]
[1730223328776,13.07698732,181.74,181.7,20.0]
[1730223329070,13.07698732,181.73,181.7,20.0]
[1730223329374,13.07698732,181.73,181.68,21.85368369]
[1730223330449,13.07698732,181.69,181.56,23.08831367]
[1730223330767,15.8243,181.71,181.62,13.07698732]
[1730223330768,13.07698732,181.68,181.62,13.07698732]
[1730223331263,13.07698732,181.69,181.63,13.07698732]
[1730223331655,13.07698732,181.69,181.64,20.0]
[1730223333364,13.07698732,181.68,181.64,20.0]
[1730223333671,13.07698732,181.68,181.63,20.0]
[1730223335570,13.07698732,181.68,181.65,20.0]
[1730223335972,13.07698732,181.68,181.63,20.0]
[1730223336270,13.07698732,181.67,181.62,20.0]
[1730223336774,13.07698732,181.66,181.62,20.0]
[1730223337075,13.07698732,181.67,181.61,33.07698732]
[1730223338371,13.07698732,181.66,181.61,20.0]
[1730223338749,13.07698732,181.64,181.6,20.0]
[1730223339254,13.07698732,181.65,181.6,20.0]
[1730223339567,13.07698732,181.66,181.6,33.07698732]
[1730223340459,13.07698732,181.64,181.59,13.07698732]
[1730223340874,13.07698732,181.65,181.59,13.07698732]
[1730223341872,13.07698732,181.65,181.6,20.0]
[1730223342745,13.07698732,181.66,181.62,20.0]
[1730223342957,13.07698732,181.67,181.62,20.0]
[1730223343554,13.07698732,181.66,181.62,20.0]
[1730223343859,13.07698732,181.65,181.61,20.0]
[1730223344554,13.07698732,181.66,181.61,20.0]
[1730223344770,8.37948846,181.66,181.6,28.37948846]
[1730223344966,15.8243,181.71,181.63,20.0]
[1730223345171,8.37948846,181.69,181.63,28.37948846]
[1730223345667,8.37948846,181.68,181.62,8.37948846]
[1730223345850,5.74624581,181.73,181.63,36.464]
[1730223346055,14.12573427,181.73,181.63,20.0]
[1730223346354,8.37948846,181.71,181.68,20.0]
[1730223346770,8.37948846,181.71,181.66,20.0]
[1730223347649,15.1862,181.78,181.7,20.0]
[1730223347852,8.37948846,181.75,181.7,20.0]
[1730223348272,15.1862,181.78,181.7,20.0]
[1730223348575,13.07774335,181.77,181.72,20.0]
[1730223348754,13.07774335,181.76,181.72,20.0]
[1730223348957,13.07774335,181.76,181.71,20.0]
[1730223349291,13.07774335,181.75,181.7,20.0]
[1730223349851,13.07774335,181.76,181.7,13.07774335]
[1730223350052,13.07774335,181.76,181.71,20.0]
[1730223350581,15.1862,181.78,181.73,13.07774335]
[1730223350785,15.1862,181.78,181.74,20.0]
[1730223351079,28.26394335,181.78,181.74,20.0]
[1730223351283,28.26394335,181.78,181.72,13.07774335]
[1730223351975,13.07774335,181.75,181.72,20.0]
[1730223352477,15.1862,181.78,181.71,20.0]
[1730223352681,15.1862,181.78,181.63,20.77478874]
[1730223352682,13.07774335,181.72,181.63,20.77478874]
[1730223352876,13.07774335,181.69,181.63,20.77478874]
[1730223353188,13.07774335,181.71,181.65,13.07774335]
[1730223354067,13.07774335,181.71,181.66,20.0]
[1730223354472,13.07774335,181.7,181.64,33.07774335]
[1730223354858,13.07774335,181.69,181.64,33.07774335]
[1730223355182,13.07774335,181.67,181.63,20.0]
[1730223355377,13.07774335,181.66,181.61,13.07774335]
[1730223355579,13.07774335,181.65,181.59,27.21895849]
[1730223355781,13.07774335,181.66,181.61,13.07774335]
[1730223355984,13.07774335,181.67,181.62,13.07774335]
[1730223356987,13.07774335,181.68,181.63,13.07774335]
[1730223357156,13.07774335,181.68,181.59,29.05609167]
[1730223357361,13.07774335,181.67,181.62,13.07774335]
[1730223357677,13.07774335,181.67,181.62,20.0]
[1730223357885,13.07774335,181.66,181.62,20.0]
[1730223358265,6.2243,181.69,181.6,13.07774335]
[1730223358266,13.07774335,181.65,181.61,20.0]
[1730223359162,13.07774335,181.66,181.61,20.0]
[1730223359363,13.07774335,181.65,181.61,20.0]
[1730223359667,13.07774335,181.65,181.6,33.07774335]
[1730223359986,13.07774335,181.66,181.6,33.07774335]
[1730223360172,13.07774335,181.64,181.6,20.0]
[1730223360373,13.07774335,181.64,181.58,27.61448834]
[1730223360588,13.07774335,181.6,181.58,27.61448834]
[1730223361484,13.07774335,181.61,181.58,27.61448834]
[1730223362374,29.49754335,181.62,181.58,27.61448834]
[1730223364686,13.07774335,181.61,181.58,27.61448834]
[1730223365275,29.49754335,181.62,181.58,27.61448834]
[1730223365677,13.07774335,181.61,181.58,27.61448834]
[1730223367382,13.07774335,181.6,181.58,27.61448834]
[1730223367881,13.07774335,181.61,181.58,27.61448834]
[1730223368461,13.07774335,181.63,181.58,40.69223169]
[1730223368986,13.07774335,181.62,181.58,27.61448834]
[1730223369900,13.07774335,181.64,181.59,13.07774335]
[1730223370476,23.776884,181.63,181.53,0.95727352]
[1730223370672,13.07774335,181.6,181.55,13.07774335]
[1730223371969,13.07774335,181.6,181.54,13.07774335]
[1730223374299,13.07774335,181.59,181.54,13.07774335]
[1730223374803,13.07774335,181.59,181.51,1.87829484]
[1730223374981,13.07774335,181.56,181.48,6.5811]
[1730223375185,13.07774335,181.56,181.51,13.07774335]
[1730223375376,13.07774335,181.56,181.5,13.07774335]
[1730223375581,15.9846,181.6,181.49,13.07774335]
[1730223375582,13.07774335,181.54,181.49,13.07774335]
[1730223376387,13.07774335,181.53,181.48,13.07774335]
[1730223376593,13.07774335,181.53,181.47,18.51475941]
[1730223376978,29.283784,181.59,181.48,13.07774335]
[1730223377179,13.07774335,181.56,181.51,13.07774335]
[1730223377700,13.07774335,181.55,181.5,13.07774335]
[1730223377908,13.07774335,181.55,181.49,13.07774335]
[1730223378401,13.07774335,181.55,181.5,13.07774335]
[1730223378572,13.07774335,181.57,181.51,13.07774335]
[1730223378770,13.07774335,181.55,181.49,13.07774335]
[1730223379009,13.07774335,181.55,181.5,13.07774335]
[1730223380493,8.39014665,181.55,181.5,8.39014665]
[1730223381392,29.52758009,181.59,181.5,8.39014665]
[1730223381591,8.39014665,181.57,181.51,8.39014665]
[1730223381889,8.39014665,181.57,181.52,8.39014665]
[1730223382096,8.39014665,181.58,181.52,8.39014665]
[1730223382307,8.39014665,181.57,181.52,8.39014665]
[1730223383180,8.39014665,181.58,181.52,8.39014665]
[1730223383903,8.39014665,181.57,181.52,8.39014665]
[1730223384700,8.39014665,181.56,181.51,8.39014665]
[1730223385991,8.39014665,181.56,181.46,0.95779242]
[1730223386193,8.39014665,181.56,181.51,8.39014665]
[1730223386906,8.39014665,181.57,181.52,8.39014665]
[1730223388504,8.39014665,181.55,181.46,0.95779242]
[1730223388813,8.39014665,181.55,181.5,8.39014665]
[1730223389013,8.39014665,181.57,181.52,8.39014665]
[1730223389510,8.39014665,181.59,181.54,8.39014665]
[1730223389690,8.39014665,181.58,181.53,8.39014665]
[1730223391100,5.75032985,181.61,181.57,8.39014665]
[1730223391308,21.6883,181.65,181.6,8.39014665]
[1730223391507,15.4081,181.65,181.62,8.39014665]
[1730223392587,23.79824665,181.65,181.53,20.0]
[1730223392792,8.39014665,181.64,181.58,8.39014665]
[1730223393308,8.39014665,181.64,181.59,8.39014665]
[1730223393508,15.4081,181.65,181.6,8.39014665]
[1730223393711,23.79824665,181.65,181.6,8.39014665]
[1730223394292,8.39014665,181.64,181.59,8.39014665]
[1730223395014,8.39014665,181.64,181.58,8.39014665]
[1730223396017,8.39014665,181.62,181.52,15.6951]
[1730223396313,8.39014665,181.61,181.55,8.39014665]
[1730223396517,8.39014665,181.61,181.56,8.39014665]
[1730223397527,8.39014665,181.61,181.55,8.39014665]
[1730223397689,8.39014665,181.6,181.54,8.39014665]
[1730223398215,8.39014665,181.61,181.56,8.39014665]
[1730223398515,8.39014665,181.62,181.57,8.39014665]
[1730223398715,14.87344665,181.63,181.58,8.39014665]
[1730223398902,8.39014665,181.64,181.59,8.39014665]
[1730223399221,8.39014665,181.63,181.57,8.39014665]
[1730223400417,15.4081,181.65,181.49,2.85913145]
[1730223400595,13.10016507,181.61,181.56,13.10016507]
[1730223401222,13.10016507,181.62,181.56,13.10016507]
[1730223401618,15.4081,181.65,181.49,2.85913145]
[1730223401619,13.10016507,181.64,181.58,13.10016507]
[1730223401920,13.10016507,181.64,181.59,13.10016507]
[1730223402303,28.50826507,181.65,181.59,13.10016507]
[1730223402703,13.10016507,181.64,181.59,13.10016507]
[1730223402904,13.10016507,181.64,181.58,13.10016507]
[1730223403499,13.10016507,181.63,181.58,13.10016507]
[1730223403998,13.10016507,181.63,181.57,13.10016507]
[1730223404193,13.10016507,181.62,181.56,13.10016507]
[1730223404499,13.10016507,181.6,181.55,13.10016507]
[1730223404822,13.10016507,181.58,181.53,13.10016507]
[1730223405019,13.10016507,181.58,181.52,13.10016507]
[1730223405405,13.10016507,181.58,181.53,13.10016507]
[1730223405901,13.10016507,181.57,181.52,13.10016507]
[1730223406921,13.10016507,181.56,181.51,13.10016507]
[1730223408807,13.10016507,181.57,181.52,13.10016507]
[1730223410110,28.90906507,181.58,181.53,13.10016507]
[1730223412911,13.10016507,181.6,181.55,13.10016507]
[1730223413121,6.2063,181.61,181.56,13.10016507]
[1730223413323,29.52166507,181.62,181.57,13.10016507]
[1730223413545,21.9123,181.66,181.59,13.10016507]
[1730223413715,13.10016507,181.65,181.6,13.10016507]
[1730223413915,13.10016507,181.65,181.59,13.10016507]
[1730223414345,13.10016507,181.64,181.59,13.10016507]
[1730223414746,13.10016507,181.64,181.58,13.10016507]
[1730223415944,13.10016507,181.63,181.57,13.10016507]
[1730223416349,13.10016507,181.61,181.56,13.10016507]
[1730223416758,13.10016507,181.61,181.55,13.10016507]
[1730223417559,13.10016507,181.61,181.52,1.88182105]
[1730223417744,13.10016507,181.62,181.57,13.10016507]
[1730223418263,21.9123,181.66,181.61,13.10016507]
[1730223418461,15.4256,181.66,181.61,13.10016507]
[1730223419438,13.10016507,181.67,181.62,13.10016507]
[1730223419636,13.10016507,181.66,181.61,13.10016507]
[1730223420037,13.10016507,181.65,181.6,13.10016507]
[1730223420461,13.10016507,181.64,181.59,13.10016507]
[1730223420962,13.10016507,181.63,181.58,13.10016507]
[1730223421165,13.10016507,181.65,181.6,13.10016507]
[1730223422266,13.10016507,181.64,181.59,13.10016507]
[1730223422562,13.10016507,181.64,181.58,13.10016507]
[1730223423856,13.10016507,181.64,181.59,13.10016507]
[1730223425597,36.87704907,181.64,181.59,13.10016507]
[1730223425737,13.10016507,181.64,181.59,13.10016507]
[1730223426063,13.10016507,181.62,181.57,13.10016507]
[1730223426274,13.10016507,181.61,181.56,13.10016507]
[1730223426573,13.10016507,181.64,181.59,13.10016507]
[1730223426738,13.10016507,181.64,181.58,13.10016507]
[1730223427068,13.10016507,181.63,181.58,13.10016507]
[1730223428871,13.10016507,181.61,181.55,13.10016507]
[1730223429046,13.10016507,181.61,181.56,13.10016507]
[1730223429452,13.10016507,181.64,181.58,13.10016507]
[1730223429868,36.87704907,181.65,181.6,13.10016507]
[1730223430074,13.10016507,181.65,181.6,13.10016507]
[1730223430658,13.10016507,181.61,181.56,13.10016507]
[1730223430861,13.10016507,181.62,181.57,13.10016507]
[1730223431161,13.10016507,181.65,181.59,13.10016507]
[1730223431561,13.10016507,181.64,181.59,13.10016507]
[1730223432753,13.10016507,181.63,181.58,13.10016507]
[1730223433371,29.41646507,181.59,181.5,2.86420503]
[1730223433573,13.10016507,181.51,181.5,0.95633437]
[1730223433757,13.10016507,181.51,181.44,13.68304607]
[1730223433954,13.10016507,181.49,181.44,0.582881]
[1730223434158,13.10016507,181.48,181.44,0.582881]
[1730223434463,13.10016507,181.46,181.44,0.582881]
[1730223435362,13.10016507,181.48,181.44,0.582881]
[1730223435565,13.10016507,181.47,181.44,0.582881]
[1730223435777,13.10016507,181.46,181.44,0.582881]
[1730223436075,13.10016507,181.47,181.44,0.582881]
[1730223436481,13.10016507,181.46,181.44,0.582881]
[1730223438559,13.10016507,181.47,181.44,0.582881]
[1730223440261,13.10016507,181.48,181.44,0.582881]
[1730223441980,13.10016507,181.47,181.44,0.582881]
[1730223442287,13.10016507,181.48,181.44,0.582881]
[1730223443065,16.1952,181.51,181.44,0.582881]
[1730223443066,13.10016507,181.47,181.44,0.582881]
[1730223443878,13.10016507,181.46,181.44,0.582881]
[1730223445162,13.10016507,181.45,181.44,0.582881]
[1730223447598,43.10016507,181.45,181.44,0.582881]
[1730223448769,56.20033014,181.45,181.44,0.582881]
[1730223448977,78.80703014,181.45,181.44,0.582881]
[1730223449494,65.70686507,181.45,181.44,0.582881]
[1730223449679,78.80703014,181.45,181.44,0.582881]
[1730223449992,65.70686507,181.45,181.44,0.582881]
[1730223450169,78.80703014,181.45,181.44,0.582881]
[1730223450375,84.41813014,181.45,181.37,1.82519351]
[1730223450606,84.41813014,181.45,181.33,5.7281918]
[1730223450607,13.10016507,181.38,181.33,18.82835687]
[1730223450903,13.10016507,181.39,181.34,13.10016507]
[1730223451099,13.10016507,181.38,181.33,5.7281918]
[1730223451272,13.10016507,181.39,181.33,5.7281918]
[1730223451598,13.10016507,181.37,181.33,5.7281918]
[1730223451792,13.10016507,181.38,181.33,20.70527515]
[1730223452900,13.10016507,181.37,181.33,20.70527515]
[1730223453315,13.10016507,181.37,181.31,16.47403009]
[1730223453515,13.10016507,181.38,181.33,13.10016507]
[1730223453883,13.10016507,181.37,181.33,13.10016507]
[1730223454222,13.10016507,181.37,181.32,13.10016507]
[1730223454391,0.1,181.43,181.31,16.47403009]
[1730223454392,13.10016507,181.39,181.34,13.10016507]
[1730223455416,13.10016507,181.41,181.36,13.10016507]
[1730223455596,13.10016507,181.44,181.39,13.10016507]
[1730223455797,13.10016507,181.44,181.32,23.776884]
[1730223455798,13.10016507,181.43,181.38,13.10016507]
[1730223455994,13.10016507,181.43,181.37,13.10016507]
[1730223456511,13.10016507,181.4,181.35,13.10016507]
[1730223456812,13.10016507,181.42,181.37,13.10016507]
[1730223457299,13.10016507,181.43,181.38,13.10016507]
[1730223457495,13.10016507,181.44,181.39,13.10016507]
[1730223457704,29.52426507,181.45,181.4,13.10016507]
[1730223458117,13.10016507,181.44,181.39,13.10016507]
[1730223458607,13.10016507,181.45,181.4,13.10016507]
[1730223458987,13.10016507,181.47,181.42,13.10016507]
[1730223459201,28.48396507,181.48,181.43,13.10016507]
[1730223459801,13.10016507,181.49,181.43,13.10016507]
[1730223460203,13.10016507,181.51,181.46,13.10016507]
[1730223460405,13.10016507,181.5,181.45,13.10016507]
[1730223461031,13.10016507,181.49,181.44,13.10016507]
[1730223461246,13.10016507,181.48,181.43,13.10016507]
[1730223461534,13.10016507,181.49,181.43,13.10016507]
[1730223461836,35.49386507,181.53,181.43,13.10016507]
[1730223462007,13.10016507,181.48,181.43,13.10016507]
[1730223462635,13.10016507,181.49,181.43,13.10016507]
[1730223463013,13.10016507,181.49,181.44,13.10016507]
[1730223463327,13.10016507,181.5,181.45,13.10016507]
[1730223463516,13.10016507,181.51,181.45,13.10016507]
[1730223463723,13.10016507,181.5,181.44,13.10016507]
[1730223464110,13.10016507,181.5,181.45,13.10016507]
[1730223464517,13.10016507,181.51,181.45,13.10016507]
[1730223464729,13.10016507,181.52,181.47,13.10016507]
[1730223468327,29.22846507,181.53,181.48,13.10016507]
[1730223468922,29.22846507,181.53,181.47,13.10016507]
[1730223469131,13.10016507,181.52,181.47,13.10016507]
[1730223469330,13.10016507,181.51,181.45,13.10016507]
[1730223469549,13.10016507,181.5,181.46,20.0]
[1730223469831,13.10016507,181.51,181.46,20.0]
[1730223470034,13.10016507,181.52,181.46,33.10016507]
[1730223470216,13.10016507,181.52,181.47,13.10016507]
[1730223470738,13.10016507,181.52,181.46,13.10016507]
[1730223471127,13.10016507,181.53,181.48,13.10016507]
[1730223471729,13.10016507,181.53,181.45,20.0]
[1730223471915,13.10016507,181.54,181.48,13.10016507]
[1730223473622,13.10016507,181.54,181.49,13.10016507]
[1730223473824,13.10016507,181.55,181.49,13.10016507]
[1730223474130,13.10016507,181.55,181.44,36.87704907]
[1730223474131,13.10016507,181.54,181.48,13.10016507]
[1730223474331,13.10016507,181.52,181.47,13.10016507]
[1730223474542,8.39362251,181.51,181.46,8.39362251]
[1730223474925,21.6491,181.57,181.46,8.39362251]
[1730223475124,8.39362251,181.51,181.46,8.39362251]
[1730223475315,8.39362251,181.52,181.47,8.39362251]
[1730223475515,8.39362251,181.53,181.48,8.39362251]
[1730223476112,8.39362251,181.53,181.43,20.0]
[1730223476113,8.39362251,181.56,181.5,8.39362251]
[1730223476311,15.5631,181.57,181.52,8.39362251]
[1730223476539,6.5072,181.61,181.52,8.39362251]
[1730223476540,21.567,181.61,181.52,8.39362251]
[1730223476718,8.39362251,181.58,181.52,8.39362251]
[1730223477417,8.39362251,181.59,181.54,8.39362251]
[1730223477635,8.39362251,181.59,181.46,36.6216]
[1730223477636,8.39362251,181.59,181.53,8.39362251]
[1730223477835,21.567,181.61,181.56,8.39362251]
[1730223478017,15.0598,181.61,181.57,8.39362251]
[1730223478628,15.0598,181.61,181.57,13.09893875]
[1730223479238,13.09893875,181.63,181.57,13.09893875]
[1730223479543,13.09893875,181.62,181.56,13.09893875]
[1730223479840,15.1073,181.65,181.59,13.09893875]
[1730223479841,28.20623875,181.65,181.59,13.09893875]
[1730223480226,13.09893875,181.64,181.59,13.09893875]
[1730223480431,28.20623875,181.65,181.59,13.09893875]
[1730223480637,28.20623875,181.65,181.6,13.09893875]
[1730223481035,28.20623875,181.65,181.59,13.09893875]
[1730223481235,13.09893875,181.63,181.58,13.09893875]
[1730223481448,13.09893875,181.6,181.55,13.09893875]
[1730223481626,13.09893875,181.59,181.54,13.09893875]
[1730223481827,13.09893875,181.58,181.53,13.09893875]
[1730223482140,13.09893875,181.59,181.54,33.09893875]
[1730223482328,13.09893875,181.6,181.54,33.09893875]
[1730223482645,13.09893875,181.59,181.54,13.09893875]
[1730223483548,13.09893875,181.59,181.53,13.09893875]
[1730223483753,13.09893875,181.56,181.5,13.09893875]
[1730223484334,13.09893875,181.57,181.51,13.09893875]
[1730223485448,13.09893875,181.56,181.51,13.09893875]
[1730223485629,5.5063,181.61,181.49,13.09893875]
[1730223485630,13.09893875,181.55,181.49,13.09893875]
[1730223485831,13.09893875,181.56,181.5,13.09893875]
[1730223486348,13.09893875,181.56,181.51,13.09893875]
[1730223486560,13.09893875,181.56,181.5,13.09893875]
[1730223486847,13.09893875,181.55,181.49,13.09893875]
[1730223487662,13.09893875,181.54,181.48,13.09893875]
[1730223487829,13.09893875,181.53,181.48,13.09893875]
[1730223488332,13.09893875,181.56,181.51,13.09893875]
[1730223488656,13.09893875,181.56,181.5,13.09893875]
[1730223488829,13.09893875,181.55,181.5,13.09893875]
[1730223489150,13.09893875,181.54,181.48,13.09893875]
[1730223489853,13.09893875,181.55,181.49,13.09893875]
[1730223492445,13.09893875,181.56,181.5,13.09893875]
[1730223492853,29.17033875,181.57,181.51,13.09893875]
[1730223493046,16.0714,181.57,181.53,13.09893875]
[1730223493762,16.0714,181.57,181.52,13.09893875]
[1730223494353,16.0714,181.57,181.53,13.09893875]
[1730223494967,16.1247,181.62,181.56,13.09893875]
[1730223495161,16.1247,181.62,181.57,13.09893875]
[1730223495371,29.22363875,181.62,181.57,13.09893875]
[1730223496467,29.22363875,181.62,181.56,13.09893875]
[1730223497260,16.1247,181.62,181.57,13.09893875]
[1730223497945,16.1247,181.62,181.58,13.09893875]
[1730223498149,16.1247,181.62,181.57,13.09893875]
[1730223498948,13.09893875,181.59,181.49,20.0]
[1730223499142,13.09893875,181.58,181.53,13.09893875]
[1730223499771,13.09893875,181.59,181.53,13.09893875]
[1730223500768,13.09893875,181.57,181.52,13.09893875]
[1730223501151,13.09893875,181.56,181.5,13.09893875]
[1730223503051,13.09893875,181.57,181.51,13.09893875]
[1730223504161,13.09893875,181.56,181.51,13.09893875]
[1730223504553,13.09893875,181.56,181.5,13.09893875]
[1730223504751,13.09893875,181.55,181.5,13.09893875]
[1730223507148,13.09893875,181.56,181.5,13.09893875]
[1730223507370,13.09893875,181.56,181.51,13.09893875]
[1730223510760,13.09893875,181.54,181.48,13.09893875]
[1730223510966,13.09893875,181.52,181.47,13.09893875]
[1730223511161,28.20193875,181.55,181.5,13.09893875]
[1730223511365,15.103,181.55,181.51,13.09893875]
[1730223511598,20.80849492,181.59,181.51,13.09893875]
[1730223511880,13.09893875,181.61,181.56,13.09893875]
[1730223512055,13.09893875,181.58,181.52,13.09893875]
[1730223512670,18.80536483,181.59,181.54,13.09893875]
[1730223513063,13.09893875,181.56,181.51,13.09893875]
[1730223513360,13.09893875,181.52,181.45,28.42253875]
[1730223513579,13.09893875,181.51,181.45,28.42253875]
[1730223514467,13.09893875,181.51,181.47,20.0]
[1730223514684,8.39200315,181.51,181.46,8.39200315]
[1730223514973,8.39200315,181.5,181.45,8.39200315]
[1730223515285,21.4631,181.56,181.46,8.39200315]
[1730223515574,8.39200315,181.52,181.46,8.39200315]
[1730223515765,8.39200315,181.51,181.46,8.39200315]
[1730223515967,21.4631,181.56,181.45,8.39200315]
[1730223515968,8.39200315,181.5,181.45,8.39200315]
[1730223516477,8.39200315,181.5,181.42,2.84607426]
[1730223516478,8.39200315,181.51,181.46,28.39200315]
[1730223516662,13.11208376,181.51,181.46,13.11208376]
[1730223516863,13.11208376,181.52,181.46,13.11208376]
[1730223518281,15.1712,181.56,181.5,13.11208376]
[1730223518459,5.70642608,181.59,181.52,13.11208376]
[1730223518664,13.11208376,181.53,181.47,20.0]
[1730223518869,13.11208376,181.52,181.47,20.0]
[1730223519081,13.11208376,181.53,181.48,13.11208376]
[1730223520380,13.11208376,181.51,181.45,13.11208376]
[1730223520583,5.70642608,181.59,181.49,13.11208376]
[1730223520878,13.11208376,181.55,181.49,13.11208376]
[1730223521460,13.11208376,181.55,181.5,13.11208376]
[1730223521665,13.11208376,181.55,181.46,43.776884]
[1730223521877,13.11208376,181.54,181.48,13.11208376]
[1730223522783,11.21332608,181.59,181.46,13.11208376]
[1730223522784,13.11208376,181.52,181.46,13.11208376]
[1730223523968,13.11208376,181.52,181.43,20.0]
[1730223523969,13.11208376,181.53,181.47,13.11208376]
[1730223524279,13.11208376,181.51,181.46,20.0]
[1730223524486,13.11208376,181.5,181.46,20.0]
[1730223524778,13.11208376,181.49,181.44,20.0]
[1730223525389,13.11208376,181.5,181.44,13.11208376]
[1730223525685,13.11208376,181.51,181.46,20.0]
[1730223525983,13.11208376,181.53,181.47,13.11208376]
[1730223526765,13.11208376,181.52,181.46,13.11208376]
[1730223527459,29.52538376,181.54,181.48,13.11208376]
[1730223527679,13.11208376,181.52,181.46,13.11208376]
[1730223527884,13.11208376,181.51,181.45,13.11208376]
[1730223528085,13.11208376,181.51,181.46,20.0]
[1730223528489,13.11208376,181.51,181.45,13.11208376]
[1730223528784,13.11208376,181.49,181.43,33.11208376]
[1730223529367,13.11208376,181.49,181.44,13.11208376]
[1730223529567,13.11208376,181.49,181.45,20.0]
[1730223529780,13.11208376,181.49,181.43,33.11208376]
[1730223530185,13.11208376,181.49,181.45,20.0]
[1730223530765,13.11208376,181.5,181.45,20.0]
[1730223530984,13.11208376,181.49,181.44,20.0]
[1730223531294,13.11208376,181.45,181.42,0.95051456]
[1730223531464,13.11208376,181.46,181.4,13.11208376]
[1730223531666,13.11208376,181.46,181.38,0.95085538]
[1730223531865,13.11208376,181.46,181.38,5.52724977]
[1730223532091,13.11208376,181.46,181.39,13.11208376]
[1730223532475,13.11208376,181.45,181.4,20.0]
[1730223534168,13.11208376,181.46,181.4,20.0]
[1730223534367,13.11208376,181.46,181.4,13.11208376]
[1730223534576,13.11208376,181.46,181.41,20.0]
[1730223540173,13.11208376,181.46,181.4,13.11208376]
[1730223540377,13.11208376,181.45,181.4,13.11208376]
[1730223540583,21.3707,181.51,181.41,8.39698018]
[1730223540584,8.39698018,181.46,181.41,8.39698018]
[1730223541301,21.3707,181.51,181.41,8.39698018]
[1730223541302,8.39698018,181.47,181.41,8.39698018]
[1730223541686,8.39698018,181.46,181.41,8.39698018]
[1730223542797,8.39698018,181.46,181.4,8.39698018]
[1730223543188,8.39698018,181.46,181.41,8.39698018]
[1730223544303,15.8611,181.51,181.42,8.39698018]
[1730223544606,8.39698018,181.47,181.42,8.39698018]
[1730223545722,8.39698018,181.47,181.41,8.39698018]
[1730223547887,8.39698018,181.47,181.42,8.39698018]
[1730223548793,8.39698018,181.46,181.41,8.39698018]
[1730223548991,8.39698018,181.46,181.4,8.39698018]
[1730223550900,8.39698018,181.48,181.42,8.39698018]
[1730223551319,8.39698018,181.47,181.42,8.39698018]
[1730223551612,8.39698018,181.47,181.41,8.39698018]
[1730223552299,15.8611,181.51,181.41,8.39698018]
[1730223552512,8.39698018,181.48,181.42,8.39698018]
[1730223553499,8.39698018,181.47,181.41,8.39698018]
[1730223553705,8.39698018,181.46,181.38,24.86409221]
[1730223553914,15.8611,181.51,181.39,8.39698018]
[1730223553915,8.39698018,181.44,181.39,8.39698018]
[1730223554227,8.39698018,181.45,181.39,8.39698018]
[1730223554425,8.39698018,181.45,181.4,8.39698018]
[1730223558427,21.3707,181.51,181.41,8.39698018]
[1730223558428,8.39698018,181.46,181.41,8.39698018]
[1730223558744,8.39698018,181.45,181.4,8.39698018]
[1730223560447,8.39698018,181.46,181.4,8.39698018]
[1730223560953,8.39698018,181.45,181.4,8.39698018]
[1730223561114,8.39698018,181.45,181.39,8.39698018]
[1730223562836,8.39698018,181.45,181.4,8.39698018]
[1730223563024,8.39698018,181.46,181.4,8.39698018]
[1730223563220,15.8611,181.51,181.37,2.89272364]
[1730223563221,15.8611,181.51,181.44,8.39698018]
[1730223563424,6.4197,181.53,181.47,8.39698018]